fUST/lending_fUST_20250618
["ID","MTS","AMOUNT","RATE_DAILY","PERIOD"]
[366337180,1750195840484,-1819.35,0.00024328,6]
[366337181,1750195840493,-819.73,0.00024328,6]
[366337182,1750195840503,-459.1516927,0.00024356,2]
[366337184,1750195840513,-153.0,0.00024356,2]
[366337185,1750195840523,-176.2005054,0.00024356,2]
[366337186,1750195840537,-573.4653004,0.00024356,2]
[366337187,1750195840548,-153.0,0.00024356,2]
[366337188,1750195840558,-153.0,0.00024356,2]
[366337189,1750195840568,-225.0,0.00024369,2]
[366337190,1750195840578,-151.0,0.000244,9]
[366337191,1750195840588,-151.0,0.00024411,7]
[366337192,1750195840597,-683.69,0.00024438,6]
[366337193,1750195840606,-497.65,0.00024438,6]
[366337194,1750195840615,-733.7687279,0.00024438,6]
[366337195,1750195840625,-648.53,0.00024438,6]
[366337196,1750195840634,-1819.47229686,0.00024438,6]
[366337197,1750195840644,-819.84,0.00024438,6]
[366337198,1750195840653,-780.586686,0.000245,3]
[366337199,1750195840663,-964.514,0.00024553,2]
[366337200,1750195840673,-800.0,0.00024556,2]
[366337201,1750195840683,-151.0,0.00024558,7]
[366337203,1750195840693,-500.0,0.00024558,2]
[366337205,1750195840703,-2200.0,0.0002457,2]
[366337207,1750195840714,-19200.78707722,0.0002465,2]
[366337209,1750195840723,-745.0,0.00024654,2]
[366337211,1750195840732,-200.0,0.00024657,6]
[366337213,1750195840742,-209.12148944,0.00024657,6]
[366337214,1750195840752,-380.0,0.00024658,2]
[366337215,1750195840761,-169.95627862,0.00024658,2]
[366337217,1750195840771,-151.0,0.00024658,2]
[366337219,1750195840782,-151.0,0.00024658,2]
[366337220,1750195840792,-1000.0,0.00024673,2]
[366337221,1750195840803,-1528.37945555,0.00024673,2]
[366337222,1750195840813,-1500.0,0.00024673,2]
[366337223,1750195840823,-151.0,0.00024685,2]
[366337224,1750195840832,-151.0,0.000247,8]
[366337225,1750195840842,-151.0,0.00024706,7]
[366337227,1750195840851,-5000.0,0.00024711,2]
[366337229,1750195840860,-8765.16046724,0.00024711,2]
[366337231,1750195840870,-5000.0,0.00024711,2]
[366337232,1750195840879,-800.0,0.00024736,2]
[366337233,1750195840888,-800.0,0.00024741,2]
[366337234,1750195840898,-500.0,0.00024777,2]
[366337235,1750195840908,-500.0,0.00024799,2]
[366337236,1750195840918,-640.76,0.000248,7]
[366337238,1750195840928,-357.19,0.000248,31]
[366337240,1750195840938,-357.19,0.000248,31]
[366337242,1750195840947,-357.19,0.000248,31]
[366337244,1750195840957,-357.19,0.000248,31]
[366337246,1750195840970,-357.19,0.000248,31]
[366337248,1750195840979,-357.19,0.000248,31]
[366337250,1750195840988,-357.19,0.000248,31]
[366337252,1750195840999,-357.19,0.000248,31]
[366337254,1750195841009,-357.19,0.000248,31]
[366337256,1750195841018,-357.19,0.000248,31]
[366337258,1750195841028,-357.19,0.000248,31]
[366337260,1750195841038,-357.19,0.000248,31]
[366337262,1750195841047,-357.19,0.000248,31]
[366337264,1750195841057,-357.19,0.000248,31]
[366337266,1750195841067,-357.19,0.000248,31]
[366337268,1750195841076,-357.19,0.000248,31]
[366337270,1750195841086,-151.0,0.00024853,7]
[366337272,1750195841095,-500.0,0.00024869,2]
[366337274,1750195841105,-500.0,0.00024873,2]
[366337276,1750195841115,-500.0,0.00024873,2]
[366337278,1750195841125,-500.0,0.00024873,2]
[366337280,1750195841135,-566.87980216,0.00024873,2]
[366337292,1750195841254,-500.0,0.00024873,2]
[366337294,1750195841264,-500.0,0.00024873,2]
[366337296,1750195841273,-500.0,0.00024873,2]
[366337298,1750195841284,-500.0,0.00024873,2]
[366337300,1750195841293,-600.0,0.00024873,2]
[366337302,1750195841303,-500.0,0.00024873,2]
[366337304,1750195841311,-500.0,0.00024873,2]
[366337305,1750195841322,-900.0,0.00024877,2]
[366337307,1750195841331,-558.14,0.00024889,4]
[366337309,1750195841340,-225.0,0.00024898,2]
[366337311,1750195841350,-151.0,0.000249,7]
[366337313,1750195841360,-196045.97363203,0.000249,2]
[366337314,1750195841514,-653.0,0.0002425,2]
[366337315,1750195841523,-1849.39999994,0.000249,2]
[366337316,1750195841613,-657.55804676,0.000249,2]
[366337608,1750195846694,-5000.0,0.00021499,2]
[366337609,1750195846704,-271.72649756,0.00021917,6]
[366337610,1750195846871,-188.27350244,0.00021917,6]
[366337612,1750195846881,-460.0,0.00021917,6]
[366337613,1750195846891,-460.0,0.00021917,6]
[366337614,1750195846900,-460.0,0.00022027,6]
[366337615,1750195846910,-460.0,0.00022027,6]
[366337616,1750195846919,-460.0,0.00022136,6]
[366337617,1750195846928,-460.0,0.00022136,6]
[366337618,1750195846938,-460.0,0.00022246,6]
[366337619,1750195846947,-4.05649756,0.00022246,6]
[366337733,1750196180352,209.855855,0.00013699,2]
[366337742,1750196835097,-414.0,0.00019392,2]
[366337744,1750196953153,-4586.0,0.00019392,2]
[366337745,1750196953196,-209.855855,0.00020187,2]
[366337746,1750196953230,-1449.6145527,0.0002047,2]
[366337747,1750196953454,-202.094327,0.00020944,2]
[366337748,1750196953484,-362.30006426,0.00021053,2]
[366337749,1750196953507,-431.0,0.00021163,2]
[366337750,1750196953528,-500.0,0.00021164,2]
[366337751,1750196953550,-300.0,0.00021244,2]
[366337752,1750196953579,-1200.17199499,0.000219,6]
[366337753,1750196953602,-217.0,0.00021915,2]
[366337754,1750196953624,-500.0,0.00021916,2]
[366337755,1750196953646,-500.0,0.00021916,2]
[366337756,1750196953668,-500.0,0.00021916,2]
[366337757,1750196953690,-58.95503884,0.00021916,2]
[366337758,1750196956092,-150.0,0.00020087,2]
[366337791,1750197031846,-1420.0,0.00021697,2]
[366337809,1750197032021,-3580.0,0.00021697,2]
[366337811,1750197032031,-1160.16626164,0.000219,6]
[366337813,1750197032040,-441.04496116,0.00021916,2]
[366337815,1750197032050,-436.93164756,0.00021916,2]
[366337817,1750197032062,-63.06835244,0.00021916,2]
[366337819,1750197032071,-223.3095274,0.00021916,2]
[366337821,1750197032081,-500.0,0.00021916,2]
[366337822,1750197032091,-500.0,0.00021916,2]
[366337824,1750197032101,-270.34734583,0.00021916,2]
[366337966,1750197037890,-566.04,0.00021697,2]
[366337968,1750197037902,-424.7153223,0.00021697,2]
[366337972,1750197037952,-4009.2446777,0.00021697,2]
[366337973,1750197037962,-229.65265417,0.00021916,2]
[366337975,1750197037973,-500.0,0.00021916,2]
[366337976,1750197037982,-500.0,0.00021916,2]
[366337977,1750197037992,-500.0,0.00021916,2]
[366337978,1750197038002,-500.0,0.00021916,2]
[366337980,1750197038011,-179.06168586,0.00021916,2]
[366337981,1750197038021,-500.0,0.00021916,2]
[366337982,1750197038030,-500.0,0.00021916,2]
[366337983,1750197038040,-160.3000874,0.00021916,2]
[366337984,1750197038052,-440.0,0.00021917,6]
[366337985,1750197038062,-493.38723592,0.00021917,6]
[366337986,1750197038072,-508.09194928,0.00021917,6]
[366337988,1750197038082,-400.0,0.00021917,6]
[366337989,1750197038092,-460.0,0.00021917,6]
[366337990,1750197038102,-440.0,0.00021917,6]
[366337991,1750197038111,-310.0,0.00021917,6]
[366337993,1750197038121,-460.0,0.00021917,6]
[366337995,1750197038130,-460.0,0.00021917,6]
[366337997,1750197038140,-460.0,0.00021917,2]
[366337999,1750197038150,-460.0,0.00021917,6]
[366338001,1750197038159,-590.72,0.00021917,6]
[366338003,1750197038168,-460.0,0.00021917,6]
[366338005,1750197038177,-460.0,0.00021917,6]
[366338007,1750197038187,-460.0,0.00021917,6]
[366338009,1750197038197,-455.44293627,0.00021917,6]
[366338012,1750197038214,-4.55706373,0.00021917,6]
[366338014,1750197038224,-455.83559669,0.00021917,6]
[366338016,1750197038233,-460.0,0.00021917,6]
[366338018,1750197038243,-430.0,0.00021917,6]
[366338020,1750197038253,-440.0,0.00021917,6]
[366338022,1750197038262,-460.0,0.00021917,6]
[366338024,1750197038271,-460.0,0.00021917,6]
[366338026,1750197038281,-460.0,0.00021917,6]
[366338028,1750197038291,-460.0,0.00021917,6]
[366338030,1750197038301,-460.0,0.00021917,6]
[366338032,1750197038310,-440.0,0.00021917,6]
[366338034,1750197038319,-460.0,0.00021917,6]
[366338036,1750197038333,-460.0,0.00021917,6]
[366338038,1750197038342,-460.0,0.00021917,6]
[366338040,1750197038352,-500.0,0.00021917,6]
[366338042,1750197038361,-500.0,0.00021917,6]
[366338044,1750197038373,-500.0,0.00021917,6]
[366338046,1750197038382,-460.0,0.00021917,6]
[366338048,1750197038392,-460.0,0.00021917,6]
[366338050,1750197038403,-460.0,0.00021917,6]
[366338052,1750197038413,-460.0,0.00021917,6]
[366338054,1750197038422,-596.57,0.00021917,6]
[366338055,1750197038432,-639.21,0.00021917,6]
[366338056,1750197038442,-460.0,0.00021917,6]
[366338057,1750197038452,-460.0,0.00021917,6]
[366338058,1750197038462,-631.47,0.00021917,6]
[366338059,1750197038471,-460.0,0.00021917,6]
[366338060,1750197038481,-460.0,0.00021917,6]
[366338061,1750197038491,-662.07,0.00021917,6]
[366338062,1750197038500,-460.0,0.00021917,6]
[366338063,1750197038510,-460.0,0.00021917,6]
[366338064,1750197038519,-460.0,0.00021917,6]
[366338065,1750197038529,-206.07,0.00021917,6]
[366338066,1750197038539,-703.49,0.00021917,6]
[366338067,1750197038549,-460.0,0.00021917,6]
[366338068,1750197038559,-460.0,0.00021917,6]
[366338069,1750197038568,-460.0,0.00021917,6]
[366338070,1750197038578,-460.0,0.00021917,6]
[366338071,1750197038587,-460.0,0.00021917,6]
[366338072,1750197038597,-430.0,0.00021917,6]
[366338073,1750197038606,-460.0,0.00021917,6]
[366338074,1750197038616,-460.0,0.00021917,6]
[366338075,1750197038625,-510.82,0.00021917,6]
[366338076,1750197038637,-460.0,0.00021917,6]
[366338077,1750197038647,-460.0,0.00021917,6]
[366338078,1750197038657,-460.0,0.00021917,6]
[366338079,1750197038667,-460.0,0.00021917,6]
[366338080,1750197038676,-599.07,0.00021917,6]
[366338081,1750197038686,-460.0,0.00021917,6]
[366338082,1750197038696,-460.0,0.00021917,6]
[366338083,1750197038706,-460.0,0.00021917,6]
[366338084,1750197038716,-400.0,0.00021917,6]
[366338085,1750197038726,-460.0,0.00021917,6]
[366338086,1750197038736,-460.0,0.00021917,6]
[366338087,1750197038746,-460.0,0.00021917,6]
[366338088,1750197038755,-460.0,0.00021917,6]
[366338089,1750197038765,-460.0,0.00021917,6]
[366338090,1750197038774,-460.0,0.00021917,6]
[366338091,1750197038784,-460.0,0.00021917,6]
[366338092,1750197038797,-460.0,0.00021917,6]
[366338093,1750197038806,-460.0,0.00021917,6]
[366338094,1750197038816,-460.0,0.00021917,6]
[366338095,1750197038825,-460.0,0.00021917,6]
[366338097,1750197038835,-460.0,0.00021917,6]
[366338099,1750197038844,-460.0,0.00021917,6]
[366338101,1750197038853,-460.0,0.00021917,6]
[366338103,1750197038862,-460.0,0.00021917,6]
[366338105,1750197038872,-460.0,0.00021917,6]
[366338107,1750197038882,-460.0,0.00021917,6]
[366338109,1750197038891,-460.0,0.00021917,6]
[366338111,1750197038901,-460.0,0.00021917,6]
[366338113,1750197038912,-460.0,0.00021917,6]
[366338115,1750197038921,-460.0,0.00021917,6]
[366338117,1750197038930,-460.0,0.00021917,6]
[366338119,1750197038940,-460.0,0.00021917,6]
[366338122,1750197038949,-460.0,0.00021917,6]
[366338124,1750197038970,-1824.05,0.00021917,6]
[366338126,1750197038980,-460.0,0.00021917,6]
[366338128,1750197038990,-460.0,0.00021917,6]
[366338130,1750197038999,-460.0,0.00021917,6]
[366338132,1750197039009,-460.0,0.00021917,6]
[366338134,1750197039019,-570.66,0.00021917,6]
[366338136,1750197039029,-1034.83,0.00021917,6]
[366338138,1750197039038,-460.0,0.00021917,6]
[366338140,1750197039048,-460.0,0.00021917,6]
[366338142,1750197039058,-529.96531797,0.00021936,2]
[366338144,1750197039068,-500.0,0.00022026,2]
[366338146,1750197039078,-411.51044184,0.00022026,2]
[366338148,1750197039087,-500.0,0.00022026,6]
[366338150,1750197039097,-460.0,0.00022027,6]
[366338152,1750197039107,-460.0,0.00022027,6]
[366338154,1750197039117,-460.0,0.00022027,2]
[366338156,1750197039128,-460.0,0.00022027,6]
[366338158,1750197039137,-460.0,0.00022027,6]
[366338160,1750197039147,-460.0,0.00022027,6]
[366338162,1750197039157,-460.0,0.00022027,6]
[366338164,1750197039167,-460.0,0.00022027,6]
[366338166,1750197039178,-414.31475741,0.00022027,6]
[366338168,1750197039187,-558.85178796,0.00022027,6]
[366338170,1750197039197,-460.0,0.00022027,6]
[366338172,1750197039206,-282.48,0.00022027,6]
[366338174,1750197039217,-460.0,0.00022027,6]
[366338176,1750197039226,-460.0,0.00022027,6]
[366338178,1750197039236,-445.45331253,0.00022027,6]
[366338180,1750197039245,-460.0,0.00022027,6]
[366338182,1750197039254,-460.0,0.00022027,6]
[366338184,1750197039264,-460.0,0.00022027,6]
[366338186,1750197039273,-460.0,0.00022027,6]
[366338188,1750197039282,-639.21,0.00022027,6]
[366338190,1750197039292,-460.0,0.00022027,6]
[366338193,1750197039302,-235.31598986,0.00022027,6]
[366338219,1750197039483,-631.47,0.00022027,6]
[366338221,1750197039493,-460.0,0.00022027,6]
[366338223,1750197039504,-460.0,0.00022027,6]
[366338225,1750197039513,-662.07,0.00022027,6]
[366338227,1750197039523,-460.0,0.00022027,6]
[366338229,1750197039533,-460.0,0.00022027,6]
[366338231,1750197039543,-703.49,0.00022027,6]
[366338233,1750197039552,-460.0,0.00022027,6]
[366338235,1750197039561,-460.0,0.00022027,6]
[366338238,1750197039570,-460.0,0.00022027,6]
[366338240,1750197039579,-460.0,0.00022027,6]
[366338242,1750197039588,-460.0,0.00022027,6]
[366338244,1750197039598,-460.0,0.00022027,6]
[366338246,1750197039607,-460.0,0.00022027,6]
[366338248,1750197039617,-460.0,0.00022027,6]
[366338250,1750197039627,-460.0,0.00022027,6]
[366338252,1750197039637,-460.0,0.00022027,6]
[366338254,1750197039646,-460.0,0.00022027,6]
[366338256,1750197039656,-460.0,0.00022027,6]
[366338258,1750197039666,-460.0,0.00022027,6]
[366338260,1750197039676,-460.0,0.00022027,6]
[366338262,1750197039686,-428.79,0.00022027,6]
[366338264,1750197039696,-151.0,0.00022027,2]
[366338266,1750197039706,-151.0,0.00022027,2]
[366338268,1750197039715,-460.0,0.00022027,6]
[366338270,1750197039725,-458.33,0.00022027,6]
[366338272,1750197039735,-460.0,0.00022027,6]
[366338274,1750197039745,-460.0,0.00022027,6]
[366338276,1750197039754,-460.0,0.00022027,6]
[366338278,1750197039764,-460.0,0.00022027,6]
[366338280,1750197039773,-460.0,0.00022027,6]
[366338281,1750197039784,-460.0,0.00022027,6]
[366338284,1750197039797,-460.0,0.00022027,6]
[366338285,1750197039806,-460.0,0.00022027,6]
[366338288,1750197039816,-460.0,0.00022027,6]
[366338289,1750197039826,-460.0,0.00022027,6]
[366338291,1750197039835,-460.0,0.00022027,6]
[366338293,1750197039845,-460.0,0.00022027,6]
[366338295,1750197039854,-460.0,0.00022027,6]
[366338297,1750197039864,-216.63702806,0.00022027,6]
[366338299,1750197039873,-460.0,0.00022027,6]
[366338301,1750197039883,-460.0,0.00022027,6]
[366338303,1750197039892,-460.0,0.00022027,6]
[366338305,1750197039902,-460.0,0.00022027,6]
[366338307,1750197039912,-460.0,0.00022027,6]
[366338309,1750197039922,-460.0,0.00022027,6]
[366338311,1750197039932,-1824.05,0.00022027,6]
[366338313,1750197039942,-460.0,0.00022027,6]
[366338315,1750197039951,-460.0,0.00022027,6]
[366338317,1750197039960,-460.0,0.00022027,6]
[366338320,1750197039973,-1034.83,0.00022027,6]
[366338322,1750197039982,-460.0,0.00022027,6]
[366338323,1750197039992,-1160.1662616,0.00022038,6]
[366338326,1750197040002,-151.0,0.00022054,2]
[366338327,1750197040011,-151.0,0.00022054,2]
[366338330,1750197040021,-618.03319233,0.00022078,2]
[366338332,1750197040030,-151.0,0.00022082,2]
[366338334,1750197040040,-151.0,0.00022082,2]
[366338335,1750197040049,-151.0,0.00022109,2]
[366338337,1750197040059,-158.09802352,0.00022109,2]
[366338340,1750197040069,-500.0,0.00022135,2]
[366338342,1750197040079,-160.0,0.00022135,2]
[366338343,1750197040088,-460.0,0.00022136,6]
[366338346,1750197040098,-460.0,0.00022136,6]
[366338347,1750197040108,-460.0,0.00022136,6]
[366338350,1750197040118,-253.54,0.00022136,6]
[366338351,1750197040128,-571.29,0.00022136,6]
[366338353,1750197040138,-460.0,0.00022136,6]
[366338355,1750197040147,-460.0,0.00022136,6]
[366338358,1750197040157,-460.0,0.00022136,6]
[366338360,1750197040166,-563.82159727,0.00022136,6]
[366338362,1750197040176,-460.0,0.00022136,6]
[366338363,1750197040185,-494.89813927,0.00022136,6]
[366338366,1750197040195,-639.21,0.00022136,6]
[366338367,1750197040204,-631.47,0.00022136,6]
[366338370,1750197040214,-460.0,0.00022136,6]
[366338371,1750197040223,-662.07,0.00022136,6]
[366338373,1750197040233,-525.97,0.00022136,6]
[366338376,1750197040243,-460.0,0.00022136,6]
[366338377,1750197040252,-703.49,0.00022136,6]
[366338379,1750197040261,-460.0,0.00022136,6]
[366338381,1750197040271,-460.0,0.00022136,6]
[366338383,1750197040280,-460.0,0.00022136,6]
[366338386,1750197040290,-460.0,0.00022136,6]
[366338388,1750197040299,-460.0,0.00022136,6]
[366338389,1750197040308,-460.0,0.00022136,6]
[366338391,1750197040318,-460.0,0.00022136,6]
[366338393,1750197040332,-375.98,0.00022136,6]
[366338395,1750197040341,-460.0,0.00022136,6]
[366338397,1750197040351,-460.0,0.00022136,6]
[366338400,1750197040360,-460.0,0.00022136,6]
[366338402,1750197040371,-460.0,0.00022136,6]
[366338404,1750197040380,-460.0,0.00022136,6]
[366338405,1750197040389,-460.0,0.00022136,6]
[366338407,1750197040400,-460.0,0.00022136,6]
[366338409,1750197040410,-460.0,0.00022136,6]
[366338411,1750197040420,-460.0,0.00022136,6]
[366338413,1750197040430,-460.0,0.00022136,6]
[366338415,1750197040439,-460.0,0.00022136,6]
[366338417,1750197040449,-460.0,0.00022136,6]
[366338419,1750197040458,-196.66,0.00022136,6]
[366338421,1750197040467,-460.0,0.00022136,6]
[366338423,1750197040477,-460.0,0.00022136,6]
[366338425,1750197040486,-460.0,0.00022136,6]
[366338427,1750197040495,-460.0,0.00022136,6]
[366338429,1750197040505,-460.0,0.00022136,6]
[366338431,1750197040514,-460.0,0.00022136,6]
[366338433,1750197040523,-460.0,0.00022136,6]
[366338435,1750197040531,-460.0,0.00022136,6]
[366338437,1750197040540,-460.0,0.00022136,6]
[366338439,1750197040549,-460.0,0.00022136,6]
[366338441,1750197040558,-460.0,0.00022136,6]
[366338443,1750197040567,-460.0,0.00022136,6]
[366338445,1750197040576,-1824.05,0.00022136,6]
[366338447,1750197040587,-260.49249775,0.00022136,6]
[366338449,1750197040596,-460.0,0.00022136,6]
[366338451,1750197040605,-1034.83,0.00022136,6]
[366338453,1750197040614,-460.0,0.00022136,6]
[366338454,1750197040622,-242.33704988,0.00022137,2]
[366338455,1750197040630,-1160.1662616,0.00022176,6]
[366338456,1750197040638,-725.29,0.000222,7]
[366338457,1750197040646,-838.58,0.00022236,3]
[366338458,1750197040654,-500.0,0.00022243,2]
[366338459,1750197040663,-876.11,0.00022245,6]
[366338460,1750197040671,-460.0,0.00022245,6]
[366338461,1750197040680,-460.0,0.00022246,6]
[366338462,1750197040689,-460.0,0.00022246,6]
[366338463,1750197040698,-460.0,0.00022246,6]
[366338464,1750197040708,-491.1,0.00022246,6]
[366338465,1750197040718,-460.0,0.00022246,6]
[366338466,1750197040727,-639.21,0.00022246,6]
[366338467,1750197040736,-631.47,0.00022246,6]
[366338468,1750197040746,-460.0,0.00022246,6]
[366338469,1750197040755,-662.07,0.00022246,6]
[366338470,1750197040765,-460.0,0.00022246,6]
[366338471,1750197040775,-703.49,0.00022246,6]
[366338473,1750197040786,-460.0,0.00022246,6]
[366338474,1750197040796,-460.0,0.00022246,6]
[366338475,1750197040805,-460.0,0.00022246,6]
[366338476,1750197040814,-460.0,0.00022246,6]
[366338477,1750197040824,-460.0,0.00022246,6]
[366338478,1750197040835,-460.0,0.00022246,6]
[366338479,1750197040844,-515.18,0.00022246,6]
[366338480,1750197040854,-460.0,0.00022246,6]
[366338481,1750197040864,-460.0,0.00022246,6]
[366338482,1750197040874,-460.0,0.00022246,6]
[366338484,1750197040883,-460.0,0.00022246,6]
[366338485,1750197040892,-460.0,0.00022246,6]
[366338486,1750197040902,-460.0,0.00022246,6]
[366338488,1750197040911,-461.84,0.00022246,6]
[366338489,1750197040920,-460.0,0.00022246,6]
[366338490,1750197040930,-460.0,0.00022246,6]
[366338491,1750197040939,-460.0,0.00022246,6]
[366338492,1750197040950,-460.0,0.00022246,6]
[366338493,1750197040959,-321.5,0.00022246,6]
[366338495,1750197040969,-460.0,0.00022246,6]
[366338496,1750197040979,-523.24,0.00022246,6]
[366338497,1750197040988,-460.0,0.00022246,6]
[366338498,1750197040998,-554.02315985,0.00022246,6]
[366338499,1750197041008,-460.0,0.00022246,6]
[366338500,1750197041018,-460.0,0.00022246,6]
[366338501,1750197041027,-460.0,0.00022246,6]
[366338502,1750197041040,-1824.05,0.00022246,6]
[366338503,1750197041053,-460.0,0.00022246,6]
[366338504,1750197041062,-1034.83,0.00022246,6]
[366338505,1750197041072,-460.0,0.00022246,6]
[366338506,1750197041083,-1160.1662616,0.00022314,7]
[366338507,1750197041092,-279.52,0.00022345,3]
[366338508,1750197041102,-876.11,0.00022355,6]
[366338509,1750197041111,-460.0,0.00022355,6]
[366338510,1750197041121,-460.0,0.00022356,6]
[366338511,1750197041130,-460.0,0.00022356,6]
[366338512,1750197041139,-472.78,0.00022356,6]
[366338513,1750197041149,-460.0,0.00022356,6]
[366338514,1750197041158,-639.21,0.00022356,6]
[366338515,1750197041167,-631.47,0.00022356,6]
[366338516,1750197041177,-460.0,0.00022356,6]
[366338517,1750197041186,-662.07,0.00022356,6]
[366338518,1750197041195,-460.0,0.00022356,6]
[366338519,1750197041204,-703.49,0.00022356,6]
[366338520,1750197041213,-460.0,0.00022356,6]
[366338521,1750197041223,-460.0,0.00022356,6]
[366338522,1750197041232,-460.0,0.00022356,6]
[366338523,1750197041242,-521.73974904,0.00022356,6]
[366338524,1750197041252,-154.06,0.00022356,6]
[366338525,1750197041261,-460.0,0.00022356,6]
[366338527,1750197041271,-288.19,0.00022356,6]
[366338529,1750197041281,-460.0,0.00022356,6]
[366338531,1750197041293,-460.0,0.00022356,6]
[366338533,1750197041303,-460.0,0.00022356,6]
[366338535,1750197041312,-460.0,0.00022356,6]
[366338537,1750197041324,-544.6,0.00022356,6]
[366338539,1750197041336,-460.0,0.00022356,6]
[366338542,1750197041347,-460.0,0.00022356,6]
[366338543,1750197041357,-460.0,0.00022356,6]
[366338546,1750197041367,-460.0,0.00022356,6]
[366338547,1750197041377,-460.0,0.00022356,6]
[366338550,1750197041387,-460.0,0.00022356,6]
[366338551,1750197041397,-460.0,0.00022356,6]
[366338554,1750197041408,-460.0,0.00022356,6]
[366338556,1750197041418,-1824.05,0.00022356,6]
[366338557,1750197041428,-460.0,0.00022356,6]
[366338559,1750197041438,-1034.83,0.00022356,6]
[366338561,1750197041448,-460.0,0.00022356,6]
[366338563,1750197041457,-1160.1662616,0.00022452,7]
[366338566,1750197041468,-876.11,0.00022464,6]
[366338568,1750197041477,-460.0,0.00022464,6]
[366338570,1750197041487,-460.0,0.00022465,6]
[366338571,1750197041496,-491.12,0.00022465,6]
[366338573,1750197041506,-460.0,0.00022465,6]
[366338576,1750197041516,-639.21,0.00022465,6]
[366338578,1750197041525,-631.47,0.00022465,6]
[366338579,1750197041535,-460.0,0.00022465,6]
[366338582,1750197041546,-662.07,0.00022465,6]
[366338584,1750197041556,-460.0,0.00022465,6]
[366338586,1750197041566,-703.49,0.00022465,6]
[366338588,1750197041575,-460.0,0.00022465,6]
[366338590,1750197041587,-329.68,0.00022465,6]
[366338592,1750197041597,-522.41,0.00022465,6]
[366338594,1750197041606,-460.0,0.00022465,6]
[366338596,1750197041616,-460.0,0.00022465,6]
[366338598,1750197041626,-460.0,0.00022465,6]
[366338600,1750197041635,-460.0,0.00022465,6]
[366338602,1750197041646,-460.0,0.00022465,6]
[366338604,1750197041656,-460.0,0.00022465,6]
[366338606,1750197041666,-460.0,0.00022465,6]
[366338608,1750197041675,-460.0,0.00022465,6]
[366338610,1750197041687,-460.0,0.00022465,6]
[366338612,1750197041696,-460.0,0.00022465,6]
[366338614,1750197041706,-460.0,0.00022465,6]
[366338616,1750197041716,-460.0,0.00022465,6]
[366338618,1750197041726,-460.0,0.00022465,6]
[366338620,1750197041735,-1824.05,0.00022465,6]
[366338622,1750197041745,-460.0,0.00022465,6]
[366338624,1750197041755,-1034.83,0.00022465,6]
[366338626,1750197041765,-460.0,0.00022465,6]
[366338628,1750197041775,-876.11,0.00022574,6]
[366338630,1750197041784,-581.24753853,0.00022574,6]
[366338632,1750197041793,-460.0,0.00022575,6]
[366338634,1750197041803,-460.0,0.00022575,6]
[366338636,1750197041813,-639.21,0.00022575,6]